[Event "*** Titled Tuesday 3|2 Blitz"]
[Site "Chess.com"]
[Date "2016.10.04"]
[Round "8"]
[White "brightthunder"]
[Black "chessbia"]
[Result "1-0"]
[WhiteElo "2375"]
[BlackElo "2042"]
[TimeControl "180+2"]
[EndTime "12:34:56 PDT"]
[Termination "brightthunder won by resignation"]

1. e4 {[%clk 0:03:01.9]} 1... e5 {[%clk 0:02:59.5]} 2. Nf3 {[%clk 0:03:01.4]}
2... Nc6 {[%clk 0:02:59.8]} 3. Bb5 {[%clk 0:03:01.4]} 3... a6 {[%clk 0:02:58.1]}
4. Ba4 {[%clk 0:03:02.2]} 4... Nf6 {[%clk 0:02:56.7]} 5. O-O {[%clk 0:03:02.7]}
5... Be7 {[%clk 0:02:56]} 6. Re1 {[%clk 0:03:03.3]} 6... b5 {[%clk 0:02:56.4]}
7. Bb3 {[%clk 0:03:04.6]} 7... O-O {[%clk 0:02:58.3]} 8. h3 {[%clk 0:03:05]}
8... Bb7 {[%clk 0:02:56.7]} 9. d3 {[%clk 0:03:04.5]} 9... h6 {[%clk 0:02:53.5]}
10. Nbd2 {[%clk 0:03:02.6]} 10... d6 {[%clk 0:02:54.4]} 11. c3 {[%clk
0:03:02.1]} 11... Nd7 {[%clk 0:02:55.5]} 12. Nf1 {[%clk 0:03:01.6]} 12... Bf6
{[%clk 0:02:56.8]} 13. Ne3 {[%clk 0:02:58.4]} 13... Na5 {[%clk 0:02:53.6]} 14.
Bc2 {[%clk 0:02:58.5]} 14... c5 {[%clk 0:02:51.7]} 15. Ng4 {[%clk 0:02:30]}
15... Re8 {[%clk 0:02:43.3]} 16. d4 {[%clk 0:02:19.3]} 16... cxd4 {[%clk
0:02:38.4]} 17. cxd4 {[%clk 0:02:21.2]} 17... Rc8 {[%clk 0:02:31.8]} 18. d5
{[%clk 0:02:10.2]} 18... Qc7 {[%clk 0:02:21]} 19. Bb1 {[%clk 0:02:04.3]} 19...
Nc4 {[%clk 0:02:12]} 20. b3 {[%clk 0:02:00.9]} 20... Ncb6 {[%clk 0:02:12.8]} 21.
Bd2 {[%clk 0:01:58.2]} 21... Be7 {[%clk 0:02:09]} 22. Bd3 {[%clk 0:01:48.3]}
22... Nc5 {[%clk 0:02:09.4]} 23. Rc1 {[%clk 0:01:37.1]} 23... Qd7 {[%clk
0:02:09]} 24. Bb1 {[%clk 0:01:35.6]} 24... Bf8 {[%clk 0:01:49.4]} 25. Bxh6
{[%clk 0:01:33.8]} 25... gxh6 {[%clk 0:01:49.3]} 26. Nf6+ {[%clk 0:01:33.8]} 1-0

[Event "*** Titled Tuesday 3|2 Blitz"]
[Site "Chess.com"]
[Date "2016.10.04"]
[Round "8"]
[White "wannabe2700"]
[Black "RamonManon0g"]
[Result "1-0"]
[WhiteElo "2316"]
[BlackElo "2217"]
[TimeControl "180+2"]
[EndTime "12:35:16 PDT"]
[Termination "wannabe2700 won by resignation"]

1. e4 {[%clk 0:03:01.9]} 1... c5 {[%clk 0:03:00.8]} 2. Nf3 {[%clk 0:03:03.3]}
2... d6 {[%clk 0:03:02]} 3. d4 {[%clk 0:03:04.8]} 3... cxd4 {[%clk 0:03:03.9]}
4. Nxd4 {[%clk 0:03:06.7]} 4... Nf6 {[%clk 0:03:05.5]} 5. Nc3 {[%clk 0:03:07.1]}
5... a6 {[%clk 0:03:07.4]} 6. Nb3 {[%clk 0:03:08.1]} 6... e5 {[%clk 0:03:03.5]}
7. Bg5 {[%clk 0:03:08.3]} 7... Be7 {[%clk 0:03:04.7]} 8. Bc4 {[%clk 0:03:06.9]}
8... O-O {[%clk 0:03:01.9]} 9. O-O {[%clk 0:03:07]} 9... Qc7 {[%clk 0:03:03.2]}
10. Bxf6 {[%clk 0:03:05.7]} 10... Bxf6 {[%clk 0:03:01.1]} 11. Qe2 {[%clk
0:03:02.7]} 11... Be6 {[%clk 0:02:59.7]} 12. Nd5 {[%clk 0:02:57.9]} 12... Bxd5
{[%clk 0:02:59.8]} 13. Bxd5 {[%clk 0:02:59.8]} 13... Nd7 {[%clk 0:02:56.9]} 14.
c4 {[%clk 0:02:56.3]} 14... Bg5 {[%clk 0:02:49.7]} 15. g3 {[%clk 0:02:55]} 15...
Rac8 {[%clk 0:02:49.6]} 16. f4 {[%clk 0:02:50.2]} 16... exf4 {[%clk 0:02:46.9]}
17. gxf4 {[%clk 0:02:52.1]} 17... Bf6 {[%clk 0:02:47.6]} 18. Rac1 {[%clk
0:02:50.3]} 18... Rfe8 {[%clk 0:02:47]} 19. Kh1 {[%clk 0:02:47.3]} 19... Nf8
{[%clk 0:02:38.5]} 20. c5 {[%clk 0:02:41.1]} 20... dxc5 {[%clk 0:02:29.9]} 21.
Nxc5 {[%clk 0:02:43]} 21... Qd6 {[%clk 0:02:29.5]} 22. Nxb7 {[%clk 0:02:41.2]}
22... Qxd5 {[%clk 0:01:19.4]} 23. exd5 {[%clk 0:02:35.6]} 23... Rxe2 {[%clk
0:01:16.7]} 24. Rxc8 {[%clk 0:02:36.1]} 24... Rxb2 {[%clk 0:01:17.1]} 25. Nc5
{[%clk 0:02:33.2]} 25... Rc2 {[%clk 0:01:02.3]} 26. d6 {[%clk 0:02:33.3]} 26...
g6 {[%clk 0:00:48.3]} 27. d7 {[%clk 0:02:33.9]} 27... Kg7 {[%clk 0:00:49.7]} 28.
Ne4 {[%clk 0:02:32.9]} 1-0

[Event "*** Titled Tuesday 3|2 Blitz"]
[Site "Chess.com"]
[Date "2016.10.04"]
[Round "8"]
[White "pedromartinez91"]
[Black "Holden-Caulfield"]
[Result "0-1"]
[WhiteElo "2336"]
[BlackElo "2477"]
[TimeControl "180+2"]
[EndTime "12:35:52 PDT"]
[Termination "Holden-Caulfield won by resignation"]

1. Nf3 {[%clk 0:03:01.9]} 1... d6 {[%clk 0:02:55.7]} 2. d4 {[%clk 0:02:54.3]}
2... Nf6 {[%clk 0:02:56.5]} 3. g3 {[%clk 0:02:55]} 3... Nbd7 {[%clk 0:02:57.5]}
4. Bg2 {[%clk 0:02:56.5]} 4... e5 {[%clk 0:02:57.5]} 5. O-O {[%clk 0:02:56.6]}
5... c6 {[%clk 0:02:58.3]} 6. c4 {[%clk 0:02:55.4]} 6... Be7 {[%clk 0:02:59.3]}
7. Nc3 {[%clk 0:02:55.7]} 7... O-O {[%clk 0:03:00.4]} 8. Nh4 {[%clk 0:02:54]}
8... Re8 {[%clk 0:03:01]} 9. Nf5 {[%clk 0:02:54.5]} 9... Bf8 {[%clk 0:03:02.3]}
10. dxe5 {[%clk 0:02:55.3]} 10... Nxe5 {[%clk 0:03:02.6]} 11. b3 {[%clk
0:02:56.1]} 11... Bxf5 {[%clk 0:03:03]} 12. e4 {[%clk 0:02:50.6]} 12... Bg4
{[%clk 0:03:02.4]} 13. f3 {[%clk 0:02:51.3]} 13... Bc8 {[%clk 0:03:03.4]} 14.
Bb2 {[%clk 0:02:49.7]} 14... a5 {[%clk 0:03:02.9]} 15. Qc2 {[%clk 0:02:49.1]}
15... Qb6+ {[%clk 0:03:02.7]} 16. Kh1 {[%clk 0:02:49.4]} 16... Nfd7 {[%clk
0:03:00.1]} 17. h3 {[%clk 0:02:49]} 17... Nc5 {[%clk 0:03:00.7]} 18. Rad1 {[%clk
0:02:48.9]} 18... Qc7 {[%clk 0:02:59.7]} 19. f4 {[%clk 0:02:49]} 19... Ng6
{[%clk 0:03:00.7]} 20. Kh2 {[%clk 0:02:48]} 20... Bd7 {[%clk 0:03:01]} 21. h4
{[%clk 0:02:44.4]} 21... Bg4 {[%clk 0:03:00.8]} 22. Rd2 {[%clk 0:02:42]} 22...
Rad8 {[%clk 0:03:00.9]} 23. Nd1 {[%clk 0:02:39.1]} 23... Bxd1 {[%clk 0:02:37.3]}
24. Rfxd1 {[%clk 0:02:37.4]} 24... h6 {[%clk 0:02:36.6]} 25. h5 {[%clk
0:02:38.1]} 25... Ne7 {[%clk 0:02:37.8]} 26. f5 {[%clk 0:02:34.6]} 26... f6
{[%clk 0:02:38.8]} 27. Ba3 {[%clk 0:02:29.7]} 27... Nc8 {[%clk 0:02:38.8]} 28.
Rd4 {[%clk 0:02:29.1]} 28... Nd7 {[%clk 0:02:39.3]} 29. Qd2 {[%clk 0:02:26.4]}
29... Ne5 {[%clk 0:02:34.2]} 30. Kh1 {[%clk 0:02:27]} 30... b6 {[%clk 0:02:20]}
31. Qf4 {[%clk 0:02:14.5]} 31... Qf7 {[%clk 0:02:15.3]} 32. g4 {[%clk
0:02:14.7]} 32... Kh8 {[%clk 0:02:15.9]} 33. Kh2 {[%clk 0:02:12.6]} 33... b5
{[%clk 0:02:14.2]} 34. Kh3 {[%clk 0:02:11.7]} 34... bxc4 {[%clk 0:02:13.8]} 35.
bxc4 {[%clk 0:02:11.1]} 35... Nxc4 {[%clk 0:02:11.4]} 36. Bc1 {[%clk 0:02:11.2]}
36... Ne5 {[%clk 0:02:12.5]} 37. Qf2 {[%clk 0:02:07.2]} 37... c5 {[%clk
0:02:11.6]} 38. R4d2 {[%clk 0:02:04.2]} 38... Nb6 {[%clk 0:02:12.2]} 39. Rc2
{[%clk 0:02:02]} 39... Rb8 {[%clk 0:02:10.1]} 40. Bf4 {[%clk 0:02:01.5]} 40...
Nbd7 {[%clk 0:02:10.6]} 41. Qd2 {[%clk 0:02:01.8]} 41... Rec8 {[%clk 0:02:11.3]}
42. Bf1 {[%clk 0:01:55.3]} 42... Rb4 {[%clk 0:02:10.9]} 43. Qe3 {[%clk
0:01:49.1]} 43... Rcb8 {[%clk 0:02:08.1]} 44. a3 {[%clk 0:01:49]} 44... Rb3
{[%clk 0:02:08.7]} 45. Bd3 {[%clk 0:01:44.5]} 45... c4 {[%clk 0:02:09.6]} 46.
Bxe5 {[%clk 0:01:42.5]} 46... Nxe5 {[%clk 0:02:09.6]} 0-1

[Event "*** Titled Tuesday 3|2 Blitz"]
[Site "Chess.com"]
[Date "2016.10.04"]
[Round "8"]
[White "Malev212"]
[Black "Dale"]
[Result "1-0"]
[WhiteElo "2348"]
[BlackElo "2085"]
[TimeControl "180+2"]
[EndTime "12:36:18 PDT"]
[Termination "Malev212 won by checkmate"]

1. Nf3 {[%clk 0:03:00.8]} 1... Nf6 {[%clk 0:03:00.5]} 2. g3 {[%clk 0:03:00.9]}
2... g6 {[%clk 0:03:01.4]} 3. b3 {[%clk 0:03:01.1]} 3... Bg7 {[%clk 0:03:01.6]}
4. Bb2 {[%clk 0:03:02.6]} 4... O-O {[%clk 0:03:02]} 5. Bg2 {[%clk 0:03:04.1]}
5... c5 {[%clk 0:03:02]} 6. c4 {[%clk 0:03:03.3]} 6... Nc6 {[%clk 0:03:02.7]} 7.
O-O {[%clk 0:03:03.2]} 7... b6 {[%clk 0:03:01.9]} 8. d4 {[%clk 0:03:03.3]} 8...
cxd4 {[%clk 0:03:01.9]} 9. Nxd4 {[%clk 0:03:03.4]} 9... Bb7 {[%clk 0:03:02.6]}
10. Nc3 {[%clk 0:03:04.8]} 10... Nxd4 {[%clk 0:02:56.9]} 11. Bxb7 {[%clk
0:03:04.3]} 11... Nf5 {[%clk 0:02:54.3]} 12. Bxa8 {[%clk 0:03:03.1]} 12... Qxa8
{[%clk 0:02:55]} 13. Rb1 {[%clk 0:02:53.1]} 13... e6 {[%clk 0:02:51.2]} 14. Re1
{[%clk 0:02:51.3]} 14... Ng4 {[%clk 0:02:47.3]} 15. e4 {[%clk 0:02:40.6]} 15...
Nfh6 {[%clk 0:02:42.2]} 16. h3 {[%clk 0:02:33.2]} 16... Ne5 {[%clk 0:02:41.5]}
17. f4 {[%clk 0:02:20]} 17... Nc6 {[%clk 0:02:39.9]} 18. Nb5 {[%clk 0:02:20.3]}
18... e5 {[%clk 0:02:28.7]} 19. Qd2 {[%clk 0:02:18.7]} 19... a6 {[%clk
0:02:23.8]} 20. Nd6 {[%clk 0:02:18.7]} 20... Nd4 {[%clk 0:02:23.9]} 21. Bxd4
{[%clk 0:02:16.9]} 21... exd4 {[%clk 0:02:24.7]} 22. e5 {[%clk 0:02:13]} 22...
Kh8 {[%clk 0:02:07.2]} 23. Qxd4 {[%clk 0:02:11.4]} 23... b5 {[%clk 0:02:07.8]}
24. c5 {[%clk 0:02:11]} 24... Qc6 {[%clk 0:02:04.8]} 25. b4 {[%clk 0:02:10]}
25... a5 {[%clk 0:02:05.3]} 26. Qe4 {[%clk 0:02:01.8]} 26... Qc7 {[%clk
0:01:57.5]} 27. a3 {[%clk 0:02:01.9]} 27... axb4 {[%clk 0:01:57.4]} 28. axb4
{[%clk 0:02:02.1]} 28... f6 {[%clk 0:01:54.5]} 29. exf6 {[%clk 0:02:01.3]} 29...
Bxf6 {[%clk 0:01:54.1]} 30. Rbd1 {[%clk 0:02:02.7]} 30... Qa7 {[%clk 0:01:51.3]}
31. g4 {[%clk 0:01:56.5]} 31... Bc3 {[%clk 0:01:50.7]} 32. Re3 {[%clk
0:01:54.9]} 32... Qa4 {[%clk 0:01:46.1]} 33. Rb1 {[%clk 0:01:33.1]} 33... Bd2
{[%clk 0:01:39.6]} 34. Qd4+ {[%clk 0:01:29.3]} 34... Kg8 {[%clk 0:01:40.2]} 35.
Qxd2 {[%clk 0:01:29]} 35... Qa8 {[%clk 0:01:35.4]} 36. Re4 {[%clk 0:01:26.1]}
36... Kh8 {[%clk 0:01:36.2]} 37. Rbe1 {[%clk 0:01:26.6]} 37... Nxg4 {[%clk
0:01:35.1]} 38. hxg4 {[%clk 0:01:25.7]} 38... Kg7 {[%clk 0:01:36.2]} 39. Qd4+
{[%clk 0:01:26.5]} 39... Kg8 {[%clk 0:01:35.7]} 40. Re7 {[%clk 0:01:26.6]} 40...
Rf7 {[%clk 0:01:35.5]} 41. Rxf7 {[%clk 0:01:26.6]} 41... Qf8 {[%clk 0:01:31.3]}
42. Rxf8+ {[%clk 0:01:26.4]} 42... Kxf8 {[%clk 0:01:32.7]} 43. Qh8# {[%clk
0:01:26.9]} 1-0

[Event "*** Titled Tuesday 3|2 Blitz"]
[Site "Chess.com"]
[Date "2016.10.04"]
[Round "8"]
[White "BellJackson95"]
[Black "Kouzari"]
[Result "0-1"]
[WhiteElo "2319"]
[BlackElo "2436"]
[TimeControl "180+2"]
[EndTime "12:36:18 PDT"]
[Termination "Kouzari won by resignation"]

1. e4 {[%clk 0:03:01.9]} 1... c5 {[%clk 0:02:59.2]} 2. Nf3 {[%clk 0:03:02.2]}
2... e6 {[%clk 0:02:48.6]} 3. d4 {[%clk 0:03:02.4]} 3... cxd4 {[%clk 0:02:49.5]}
4. Nxd4 {[%clk 0:03:04.3]} 4... a6 {[%clk 0:02:51.4]} 5. Nc3 {[%clk 0:03:05]}
5... Qc7 {[%clk 0:02:46.6]} 6. Qf3 {[%clk 0:03:02.9]} 6... Nc6 {[%clk
0:02:43.6]} 7. Nxc6 {[%clk 0:03:01.2]} 7... bxc6 {[%clk 0:02:34.2]} 8. Qg3
{[%clk 0:02:59.4]} 8... Qxg3 {[%clk 0:02:30.9]} 9. hxg3 {[%clk 0:03:01.3]} 9...
d5 {[%clk 0:02:32.8]} 10. Na4 {[%clk 0:02:55.6]} 10... Nf6 {[%clk 0:02:21.2]}
11. Nb6 {[%clk 0:02:40.1]} 11... Rb8 {[%clk 0:02:18.8]} 12. Nxc8 {[%clk
0:02:40.4]} 12... Rxc8 {[%clk 0:02:20.7]} 13. Bxa6 {[%clk 0:02:33.1]} 13... Rb8
{[%clk 0:02:19.6]} 14. exd5 {[%clk 0:02:25.6]} 14... cxd5 {[%clk 0:02:16.1]} 15.
a3 {[%clk 0:02:20.4]} 15... Bc5 {[%clk 0:02:12.7]} 16. Bd3 {[%clk 0:02:13.7]}
16... Bd4 {[%clk 0:02:11]} 17. c3 {[%clk 0:02:11.9]} 17... Be5 {[%clk
0:02:11.2]} 18. Ke2 {[%clk 0:02:06.6]} 18... Ke7 {[%clk 0:02:07.8]} 19. a4
{[%clk 0:02:06.3]} 19... Nd7 {[%clk 0:02:06]} 20. Ra2 {[%clk 0:01:58.8]} 20...
Nc5 {[%clk 0:01:55.6]} 21. Bc2 {[%clk 0:01:59.2]} 21... h6 {[%clk 0:01:54.6]}
22. b4 {[%clk 0:01:55.8]} 22... Na6 {[%clk 0:01:52.5]} 23. Bf4 {[%clk
0:01:55.4]} 23... Bxf4 {[%clk 0:01:49.1]} 24. gxf4 {[%clk 0:01:57.3]} 24... Rhc8
{[%clk 0:01:51]} 25. Bd3 {[%clk 0:01:53.9]} 25... Rxc3 {[%clk 0:01:47.9]} 26.
Bxa6 {[%clk 0:01:52]} 26... Rxb4 {[%clk 0:01:49.8]} 27. Bd3 {[%clk 0:01:49.3]}
27... Rxf4 {[%clk 0:01:47.8]} 28. a5 {[%clk 0:01:48.2]} 28... e5 {[%clk
0:01:49.3]} 29. a6 {[%clk 0:01:46.7]} 29... e4 {[%clk 0:01:50.8]} 30. a7 {[%clk
0:01:33.8]} 30... exd3+ {[%clk 0:01:52]} 31. Kd2 {[%clk 0:01:34.4]} 31... Rxf2+
{[%clk 0:01:53]} 32. Kxc3 {[%clk 0:01:32.1]} 32... Rxa2 {[%clk 0:01:54.4]} 33.
Kxd3 {[%clk 0:01:30]} 33... Rxa7 {[%clk 0:01:54.7]} 34. Kd4 {[%clk 0:01:31.9]}
34... Kd6 {[%clk 0:01:55.2]} 35. Rf1 {[%clk 0:01:32.1]} 35... Ra4+ {[%clk
0:01:56.5]} 36. Ke3 {[%clk 0:01:32.9]} 36... f6 {[%clk 0:01:57.1]} 37. Rb1
{[%clk 0:01:32.1]} 37... Rg4 {[%clk 0:01:58.5]} 38. Kf3 {[%clk 0:01:32.6]} 38...
Rg5 {[%clk 0:01:57.8]} 39. g4 {[%clk 0:01:33.2]} 39... d4 {[%clk 0:01:59.1]} 40.
Kf4 {[%clk 0:01:33.7]} 40... Rd5 {[%clk 0:01:59.9]} 41. Rb7 {[%clk 0:01:31]}
41... d3 {[%clk 0:02:00.8]} 42. Rxg7 {[%clk 0:01:32]} 42... d2 {[%clk
0:02:02.1]} 43. Rg6 {[%clk 0:01:28.8]} 43... d1=Q {[%clk 0:02:02.8]} 44. Rxf6+
{[%clk 0:01:30.7]} 44... Kc5 {[%clk 0:02:04.2]} 45. Rxh6 {[%clk 0:01:31.5]}
45... Qd2+ {[%clk 0:02:05.4]} 0-1

[Event "*** Titled Tuesday 3|2 Blitz"]
[Site "Chess.com"]
[Date "2016.10.04"]
[Round "8"]
[White "MyleneFarmer"]
[Black "annakantane"]
[Result "0-1"]
[WhiteElo "2290"]
[BlackElo "2231"]
[TimeControl "180+2"]
[EndTime "12:36:25 PDT"]
[Termination "annakantane won by resignation"]

1. e4 {[%clk 0:03:02]} 1... c5 {[%clk 0:02:53.2]} 2. Nf3 {[%clk 0:02:59.4]} 2...
e6 {[%clk 0:02:51.9]} 3. g3 {[%clk 0:02:57.4]} 3... Nc6 {[%clk 0:02:46.5]} 4.
Bg2 {[%clk 0:02:55.1]} 4... e5 {[%clk 0:02:44.5]} 5. O-O {[%clk 0:02:53.7]} 5...
d6 {[%clk 0:02:42.7]} 6. Nc3 {[%clk 0:02:55.6]} 6... g6 {[%clk 0:02:41.5]} 7. d3
{[%clk 0:02:49.5]} 7... Bg7 {[%clk 0:02:40.5]} 8. Nd5 {[%clk 0:02:50.9]} 8...
Be6 {[%clk 0:02:38.4]} 9. c4 {[%clk 0:02:47.3]} 9... h6 {[%clk 0:02:32.3]} 10.
Re1 {[%clk 0:02:47.4]} 10... Nge7 {[%clk 0:02:32.8]} 11. Rb1 {[%clk 0:02:48.5]}
11... O-O {[%clk 0:02:31.8]} 12. a3 {[%clk 0:02:49.9]} 12... a5 {[%clk
0:02:07.2]} 13. Nd2 {[%clk 0:02:41]} 13... Nd4 {[%clk 0:02:05]} 14. Nxe7+ {[%clk
0:02:37.3]} 14... Qxe7 {[%clk 0:02:05.5]} 15. b4 {[%clk 0:02:37.6]} 15... axb4
{[%clk 0:02:05.1]} 16. axb4 {[%clk 0:02:28.8]} 16... cxb4 {[%clk 0:01:59]} 17.
Rxb4 {[%clk 0:02:29]} 17... Ra2 {[%clk 0:01:57.6]} 18. Nf1 {[%clk 0:02:26.5]}
18... Nc2 {[%clk 0:01:52.9]} 19. Rb2 {[%clk 0:02:07.8]} 19... Rxb2 {[%clk
0:01:50.4]} 20. Bxb2 {[%clk 0:02:07.5]} 20... Nxe1 {[%clk 0:01:51.3]} 21. Qxe1
{[%clk 0:02:09]} 21... Ra8 {[%clk 0:01:43.7]} 22. Ne3 {[%clk 0:02:09.3]} 22...
Qc7 {[%clk 0:01:41.5]} 23. h4 {[%clk 0:02:08.5]} 23... Qb6 {[%clk 0:01:40.3]}
24. Bc3 {[%clk 0:02:09.1]} 24... h5 {[%clk 0:01:27.5]} 25. Nf1 {[%clk
0:02:05.5]} 25... Bh6 {[%clk 0:01:26.7]} 26. Qd1 {[%clk 0:02:01.6]} 26... Ra3
{[%clk 0:01:18.8]} 27. Bd2 {[%clk 0:02:01.4]} 27... Bxd2 {[%clk 0:01:08.4]} 28.
Qxd2 {[%clk 0:02:02]} 28... Qd4 {[%clk 0:01:00]} 29. Ne3 {[%clk 0:02:00.4]}
29... Qxd3 {[%clk 0:00:58.5]} 30. Qb4 {[%clk 0:02:01.3]} 30... Ra1+ {[%clk
0:00:57.5]} 31. Kh2 {[%clk 0:02:01]} 31... Rb1 {[%clk 0:00:55.1]} 32. Qa5 {[%clk
0:02:01.2]} 32... Rb2 {[%clk 0:00:39.6]} 33. Qd8+ {[%clk 0:02:01.7]} 33... Kg7
{[%clk 0:00:40.5]} 34. Kg1 {[%clk 0:01:51.7]} 34... Qd2 {[%clk 0:00:37.9]} 0-1

[Event "*** Titled Tuesday 3|2 Blitz"]
[Site "Chess.com"]
[Date "2016.10.04"]
[Round "8"]
[White "DavitZarkua"]
[Black "FrankieJay"]
[Result "1-0"]
[WhiteElo "2502"]
[BlackElo "2193"]
[TimeControl "180+2"]
[EndTime "12:36:54 PDT"]
[Termination "DavitZarkua won by checkmate"]

1. e4 {[%clk 0:03:02]} 1... c6 {[%clk 0:03:00.9]} 2. c4 {[%clk 0:03:00.7]} 2...
d5 {[%clk 0:03:02.1]} 3. exd5 {[%clk 0:03:01]} 3... cxd5 {[%clk 0:03:04]} 4. d4
{[%clk 0:03:01.8]} 4... Nf6 {[%clk 0:03:04.6]} 5. Nc3 {[%clk 0:03:03.2]} 5...
Nc6 {[%clk 0:03:05.9]} 6. Bg5 {[%clk 0:02:59.8]} 6... Be6 {[%clk 0:03:03.3]} 7.
a3 {[%clk 0:02:59.6]} 7... g6 {[%clk 0:02:52.7]} 8. Bxf6 {[%clk 0:02:54.2]} 8...
exf6 {[%clk 0:02:53.9]} 9. cxd5 {[%clk 0:02:41.4]} 9... Bxd5 {[%clk 0:02:53.7]}
10. Qe2+ {[%clk 0:02:42.6]} 10... Ne7 {[%clk 0:02:34.1]} 11. Nxd5 {[%clk
0:02:40.9]} 11... Qxd5 {[%clk 0:02:34.9]} 12. Qb5+ {[%clk 0:02:42.3]} 12... Qxb5
{[%clk 0:02:20.5]} 13. Bxb5+ {[%clk 0:02:44.2]} 13... Kd8 {[%clk 0:02:22.2]} 14.
Bc4 {[%clk 0:02:43.7]} 14... Rc8 {[%clk 0:02:03.7]} 15. Bxf7 {[%clk 0:02:38.9]}
15... Rc2 {[%clk 0:02:04.9]} 16. Nf3 {[%clk 0:02:40.4]} 16... Rxb2 {[%clk
0:02:00.2]} 17. O-O {[%clk 0:02:39]} 17... Nf5 {[%clk 0:01:56.4]} 18. Be6 {[%clk
0:02:27.8]} 18... Nd6 {[%clk 0:01:53.4]} 19. Rfe1 {[%clk 0:02:21.8]} 19... Bg7
{[%clk 0:01:52.2]} 20. Rac1 {[%clk 0:02:14.7]} 20... Re8 {[%clk 0:01:35.5]} 21.
h4 {[%clk 0:02:12.2]} 21... Re7 {[%clk 0:01:35.3]} 22. d5 {[%clk 0:02:09.1]}
22... f5 {[%clk 0:00:55.7]} 23. Bg8 {[%clk 0:01:48.5]} 23... Ne4 {[%clk
0:00:18.5]} 24. Bxh7 {[%clk 0:01:37.1]} 24... Rb6 {[%clk 0:00:18]} 25. h5 {[%clk
0:01:34.4]} 25... gxh5 {[%clk 0:00:15.7]} 26. Bxf5 {[%clk 0:01:34.5]} 26... Nc3
{[%clk 0:00:16.8]} 27. Be6 {[%clk 0:01:32.8]} 27... Rb3 {[%clk 0:00:14.5]} 28.
Nd2 {[%clk 0:01:30.8]} 28... Rxa3 {[%clk 0:00:14.4]} 29. Nc4 {[%clk 0:01:30.8]}
29... Ra6 {[%clk 0:00:15]} 30. Ne5 {[%clk 0:01:29.3]} 30... Bxe5 {[%clk
0:00:14.5]} 31. Rxe5 {[%clk 0:01:29.7]} 31... Nb5 {[%clk 0:00:15.7]} 32. Rc8#
{[%clk 0:01:27.3]} 1-0

[Event "*** Titled Tuesday 3|2 Blitz"]
[Site "Chess.com"]
[Date "2016.10.04"]
[Round "8"]
[White "Kawhi_Leonard2"]
[Black "HovmoellerHest"]
[Result "0-1"]
[WhiteElo "1980"]
[BlackElo "2293"]
[TimeControl "180+2"]
[EndTime "12:37:09 PDT"]
[Termination "HovmoellerHest won by resignation"]

1. e4 {[%clk 0:03:01.9]} 1... c5 {[%clk 0:02:59.8]} 2. Nf3 {[%clk 0:03:02.5]}
2... d6 {[%clk 0:03:01]} 3. d4 {[%clk 0:03:03.7]} 3... cxd4 {[%clk 0:03:02.9]}
4. Nxd4 {[%clk 0:03:04.6]} 4... Nf6 {[%clk 0:03:04.1]} 5. Nc3 {[%clk 0:03:06.1]}
5... a6 {[%clk 0:03:05.1]} 6. Be2 {[%clk 0:03:07.1]} 6... e5 {[%clk 0:03:06.1]}
7. Nb3 {[%clk 0:03:07.7]} 7... Be7 {[%clk 0:03:06.9]} 8. O-O {[%clk 0:03:08]}
8... Be6 {[%clk 0:03:07.4]} 9. Qd3 {[%clk 0:03:04.3]} 9... b5 {[%clk 0:03:06.8]}
10. a4 {[%clk 0:03:03.8]} 10... b4 {[%clk 0:02:49.8]} 11. Nd5 {[%clk 0:03:03.8]}
11... Bxd5 {[%clk 0:02:42.8]} 12. exd5 {[%clk 0:03:04.7]} 12... a5 {[%clk
0:02:35.8]} 13. c4 {[%clk 0:02:36.9]} 13... Nbd7 {[%clk 0:02:20.8]} 14. Be3
{[%clk 0:02:30.5]} 14... O-O {[%clk 0:02:16.8]} 15. Rac1 {[%clk 0:02:12.5]}
15... Nc5 {[%clk 0:02:06.4]} 16. Nxc5 {[%clk 0:02:11.3]} 16... dxc5 {[%clk
0:02:07.5]} 17. Bf3 {[%clk 0:02:10.6]} 17... Bd6 {[%clk 0:02:06.2]} 18. Bg5
{[%clk 0:02:08.7]} 18... h6 {[%clk 0:02:01.9]} 19. Bh4 {[%clk 0:02:08.9]} 19...
g5 {[%clk 0:01:57.1]} 20. Bg3 {[%clk 0:02:09.1]} 20... Qd7 {[%clk 0:01:40.5]}
21. Rce1 {[%clk 0:02:08.9]} 21... Rae8 {[%clk 0:01:39.1]} 22. Re3 {[%clk
0:02:08.6]} 22... Qxa4 {[%clk 0:01:33.5]} 23. Rfe1 {[%clk 0:02:01.7]} 23... Qd7
{[%clk 0:01:11.5]} 24. Bxe5 {[%clk 0:02:00.2]} 24... Bxe5 {[%clk 0:01:11.3]} 25.
Rxe5 {[%clk 0:02:01.1]} 25... Rxe5 {[%clk 0:01:11]} 26. Rxe5 {[%clk 0:02:01.5]}
26... a4 {[%clk 0:01:03.8]} 27. h4 {[%clk 0:01:58.2]} 27... g4 {[%clk
0:01:03.7]} 28. Bd1 {[%clk 0:01:58.3]} 28... Ra8 {[%clk 0:00:57.3]} 29. Qe3
{[%clk 0:01:48]} 29... Kg7 {[%clk 0:00:53.1]} 30. Qxc5 {[%clk 0:01:31.4]} 30...
a3 {[%clk 0:00:52.1]} 31. bxa3 {[%clk 0:01:32.1]} 31... bxa3 {[%clk 0:00:52.8]}
32. Re7 {[%clk 0:00:57.2]} 32... Qxe7 {[%clk 0:00:51.7]} 33. Qxe7 {[%clk
0:00:56.7]} 33... a2 {[%clk 0:00:52.9]} 0-1

[Event "*** Titled Tuesday 3|2 Blitz"]
[Site "Chess.com"]
[Date "2016.10.04"]
[Round "8"]
[White "sandropozo"]
[Black "josiwales"]
[Result "1-0"]
[WhiteElo "2373"]
[BlackElo "2221"]
[TimeControl "180+2"]
[EndTime "12:37:15 PDT"]
[Termination "sandropozo won by resignation"]

1. d4 {[%clk 0:02:56.1]} 1... Nf6 {[%clk 0:02:57.3]} 2. c4 {[%clk 0:02:56]} 2...
g6 {[%clk 0:02:58.7]} 3. Nf3 {[%clk 0:02:54.4]} 3... Bg7 {[%clk 0:03:00.1]} 4.
g3 {[%clk 0:02:54.6]} 4... O-O {[%clk 0:03:00.9]} 5. Bg2 {[%clk 0:02:55.7]} 5...
d6 {[%clk 0:03:02.6]} 6. O-O {[%clk 0:02:57]} 6... Nbd7 {[%clk 0:03:03.6]} 7.
Nc3 {[%clk 0:02:57.2]} 7... c6 {[%clk 0:03:03.3]} 8. e4 {[%clk 0:02:57.9]} 8...
e5 {[%clk 0:03:04.2]} 9. h3 {[%clk 0:02:59.1]} 9... Ne8 {[%clk 0:03:04.8]} 10.
Re1 {[%clk 0:02:56.8]} 10... Qc7 {[%clk 0:03:00.9]} 11. Be3 {[%clk 0:02:42.9]}
11... h6 {[%clk 0:02:55.7]} 12. Qc2 {[%clk 0:02:36.1]} 12... Kh7 {[%clk
0:02:53.1]} 13. Rad1 {[%clk 0:02:36.7]} 13... f6 {[%clk 0:02:20.1]} 14. b3
{[%clk 0:02:21.8]} 14... Rf7 {[%clk 0:02:18.3]} 15. Rd2 {[%clk 0:02:06.2]} 15...
Nf8 {[%clk 0:02:18.3]} 16. Red1 {[%clk 0:02:04.1]} 16... f5 {[%clk 0:02:14.1]}
17. dxe5 {[%clk 0:02:04.6]} 17... dxe5 {[%clk 0:02:15]} 18. Rd8 {[%clk
0:01:55.6]} 18... Qe7 {[%clk 0:02:00.2]} 19. Bc5 {[%clk 0:00:59.4]} 19... Qxc5
{[%clk 0:01:57.5]} 20. Rxe8 {[%clk 0:01:01]} 20... Re7 {[%clk 0:01:49.2]} 21.
Rdd8 {[%clk 0:00:54.8]} 21... Ne6 {[%clk 0:01:40]} 22. exf5 {[%clk 0:00:49]}
22... Nf4 {[%clk 0:00:46.6]} 23. fxg6+ {[%clk 0:00:48]} 23... Nxg6 {[%clk
0:00:47.4]} 24. Nh4 {[%clk 0:00:45.5]} 24... e4 {[%clk 0:00:16.6]} 25. Bxe4
{[%clk 0:00:44.3]} 25... Bf5 {[%clk 0:00:09]} 26. Bxf5 {[%clk 0:00:40]} 1-0